bitfinex/quotes_BTCUSD_20251117
["timestamp","ask_amount","ask_price","bid_price","bid_amount"]
[1763380477890,0.03140622,95737.0,95721.0,0.02089405]
[1763380478132,0.01958201,95736.0,95721.0,0.02089405]
[1763380478274,0.01958201,95735.0,95721.0,0.02089405]
[1763380478478,0.03140622,95737.0,95721.0,0.02089405]
[1763380478479,0.0198267,95734.0,95721.0,0.02089405]
[1763380478800,0.01958201,95733.0,95721.0,0.02089405]
[1763380479000,0.01958201,95733.0,95720.0,0.14626404]
[1763380479340,0.01958201,95732.0,95721.0,0.01545462]
[1763380479567,0.01958201,95731.0,95721.0,0.01545462]
[1763380479742,0.01958201,95730.0,95721.0,0.01545462]
[1763380479944,0.03140622,95737.0,95721.0,0.01545462]
[1763380480184,0.01959798,95736.0,95721.0,0.01545462]
[1763380480302,0.01959798,95735.0,95721.0,0.01545462]
[1763380480506,0.01959798,95734.0,95721.0,0.01545462]
[1763380480731,0.01959798,95733.0,95721.0,0.01545462]
[1763380481095,0.01959798,95732.0,95721.0,0.01545462]
[1763380481329,0.01959798,95731.0,95721.0,0.01545462]
[1763380481529,0.01959798,95730.0,95721.0,0.01545462]
[1763380481737,0.01959798,95729.0,95721.0,0.01545462]
[1763380481892,0.03140622,95737.0,95721.0,0.01545462]
[1763380482089,0.01960354,95736.0,95721.0,0.01545462]
[1763380482298,0.01960354,95735.0,95721.0,0.01545462]
[1763380482508,0.01960354,95734.0,95721.0,0.01545462]
[1763380482724,0.01960354,95733.0,95721.0,0.01545462]
[1763380482892,0.03140622,95737.0,95721.0,0.01545462]
[1763380482893,0.01960354,95732.0,95721.0,0.01545462]
[1763380483098,0.01960354,95731.0,95721.0,0.01545462]
[1763380483299,0.01960354,95730.0,95721.0,0.01545462]
[1763380483537,0.01960354,95729.0,95721.0,0.01545462]
[1763380483834,0.02113874,95736.0,95721.0,0.01645462]
[1763380484035,0.01960319,95735.0,95722.0,0.02089383]
[1763380484177,0.04074193,95734.0,95721.0,0.02089405]
[1763380484381,0.01960319,95733.0,95721.0,0.02089405]
[1763380484794,0.01960319,95732.0,95721.0,0.02089405]
[1763380484988,0.01960319,95731.0,95721.0,0.02089405]
[1763380485258,0.01960319,95730.0,95721.0,0.02089405]
[1763380485428,0.02113874,95736.0,95721.0,0.02089405]
[1763380485632,0.01960415,95735.0,95721.0,0.02089405]
[1763380485792,0.04074289,95734.0,95721.0,0.02089405]
[1763380485987,0.01960415,95733.0,95720.0,0.10115809]
[1763380486233,0.16362864,95739.0,95720.0,0.10115809]
[1763380486411,0.52004407,95740.0,95721.0,0.00244872]
[1763380487208,0.52004407,95740.0,95721.0,0.00604249]
[1763380487410,0.02611266,95739.0,95721.0,0.00604249]
[1763380487944,0.52004407,95740.0,95721.0,0.00604249]
[1763380488147,0.52004407,95731.0,95721.0,0.00604249]
[1763380488377,0.52004407,95731.0,95722.0,0.00604242]
[1763380488553,0.52004407,95731.0,95723.0,0.00604235]
[1763380488780,0.52004407,95731.0,95724.0,0.00604228]
[1763380488987,0.52004407,95731.0,95721.0,0.00604275]
[1763380489392,0.52104407,95740.0,95721.0,0.00604275]
[1763380489742,0.52004407,95740.0,95721.0,0.00604275]
[1763380489989,0.323,95739.0,95721.0,0.00604275]
[1763380490187,0.001,95739.0,95721.0,0.00604275]
[1763380490594,0.52004407,95740.0,95721.0,0.00604275]
[1763380490952,0.52104407,95740.0,95721.0,0.00604275]
[1763380491139,0.52104407,95740.0,95721.0,0.00857805]
[1763380491725,0.02611266,95739.0,95721.0,0.00857805]
[1763380492196,0.52104407,95740.0,95721.0,0.00857805]
[1763380492409,0.52004407,95731.0,95722.0,0.00857796]
[1763380492617,0.52004407,95731.0,95723.0,0.00857787]
[1763380492812,0.52004407,95731.0,95720.0,0.10115809]
[1763380492813,0.52004407,95731.0,95724.0,0.00857778]
[1763380493017,0.52004407,95731.0,95721.0,0.00857778]
[1763380493175,0.52004407,95731.0,95720.0,0.08673587]
[1763380496735,0.04808,95740.0,95720.0,0.08673587]
[1763380496940,0.52004407,95730.0,95720.0,0.08673587]
[1763380500470,0.41047009,95729.0,95720.0,0.04573587]
[1763380500676,0.41941538,95729.0,95720.0,0.04573587]
[1763380501272,0.41941538,95729.0,95721.0,0.02096]
[1763380501414,0.41941538,95729.0,95720.0,0.04573587]
[1763380501809,0.41941538,95729.0,95720.0,0.04673587]
[1763380502015,0.37133538,95729.0,95720.0,0.04573587]
[1763380502506,0.37133538,95729.0,95721.0,0.001]
[1763380502718,0.323,95730.0,95721.0,0.001]
[1763380503539,0.323,95730.0,95720.0,0.04573587]
[1763380504479,0.323,95730.0,95720.0,0.04673587]
[1763380504655,0.323,95739.0,95720.0,0.04573587]
[1763380504814,0.02611293,95738.0,95720.0,0.04573587]
[1763380505007,0.05752024,95738.0,95720.0,0.04573587]
[1763380505757,0.323,95729.0,95720.0,0.04573587]
[1763380507589,0.323,95729.0,95720.0,0.02273587]
[1763380507792,0.02417699,95728.0,95720.0,0.02273587]
[1763380507982,0.01507124,95728.0,95720.0,0.02273587]
[1763380508189,0.323,95729.0,95720.0,0.02273587]
[1763380509650,0.323,95729.0,95720.0,0.02173587]
[1763380509852,0.323,95739.0,95720.0,0.02273587]
[1763380510056,0.02611293,95738.0,95720.0,0.02273587]
[1763380510257,0.02611293,95738.0,95720.0,0.02173587]
[1763380510480,0.02611293,95738.0,95720.0,0.02273587]
[1763380510884,0.02611293,95738.0,95720.0,0.02173587]
[1763380511872,0.323,95739.0,95720.0,0.02173587]
[1763380512119,0.324,95739.0,95720.0,0.02173587]
[1763380512651,0.323,95739.0,95720.0,0.02173587]
[1763380515055,0.51995198,95730.0,95720.0,0.02173587]
[1763380515284,0.001,95720.0,95710.0,0.51995198]
[1763380515453,0.00104425,95720.0,95710.0,0.51995198]
[1763380516086,0.00104425,95720.0,95701.0,0.04341874]
[1763380516506,0.00104425,95720.0,95710.0,0.001]
[1763380517268,0.00104425,95720.0,95701.0,0.04341874]
[1763380517485,0.00104425,95720.0,95701.0,0.04441874]
[1763380517686,0.00104425,95720.0,95701.0,0.04341874]
[1763380519068,0.00104425,95720.0,95710.0,0.001]
[1763380519271,0.00104425,95720.0,95710.0,0.52095198]
[1763380519478,0.00104425,95720.0,95710.0,0.51995198]
[1763380520905,0.00104425,95720.0,95710.0,0.52095198]
[1763380521849,0.00104425,95720.0,95710.0,0.001]
[1763380522470,0.00104425,95720.0,95710.0,0.51995198]
[1763380523353,0.00104425,95720.0,95710.0,0.83338198]
[1763380523774,0.00104425,95720.0,95710.0,1.03338198]
[1763380525953,0.00104425,95720.0,95710.0,0.51343]
[1763380526161,0.00104425,95720.0,95710.0,1.03338198]
[1763380529430,0.00104425,95720.0,95710.0,0.95538198]
[1763380531292,0.00104425,95720.0,95711.0,0.02096]
[1763380531495,0.00104425,95720.0,95711.0,0.39144]
[1763380532616,0.00104425,95720.0,95711.0,0.39244]
[1763380533335,0.00104425,95720.0,95710.0,0.15701]
[1763380533503,0.00104425,95720.0,95710.0,0.51995198]
[1763380533947,0.00104425,95720.0,95710.0,0.83338198]
[1763380534190,0.00104425,95720.0,95711.0,0.001]
[1763380534370,0.00104425,95720.0,95711.0,0.31444]
[1763380534573,0.00104425,95720.0,95711.0,0.31344]
[1763380535907,0.00104425,95720.0,95711.0,0.31544]
[1763380536505,0.00104425,95720.0,95711.0,0.26944]
[1763380541378,0.00104425,95720.0,95712.0,0.02096]
[1763380541647,4.425e-05,95720.0,95712.0,0.35944]
[1763380542782,4.425e-05,95720.0,95712.0,0.36044]
[1763380543430,4.425e-05,95720.0,95712.0,0.36144]
[1763380543627,4.425e-05,95720.0,95712.0,0.30544]
[1763380547110,4.425e-05,95720.0,95712.0,0.30444]
[1763380547312,4.425e-05,95720.0,95712.0,0.30344]
[1763380547737,4.425e-05,95720.0,95712.0,0.30444]
[1763380547935,4.425e-05,95720.0,95712.0,0.30344]
[1763380550653,4.425e-05,95720.0,95712.0,0.26544]
[1763380551866,0.51995198,95730.0,95712.0,0.26544]
[1763380552854,0.51995198,95722.0,95712.0,0.26544]
[1763380552973,0.03140836,95732.0,95712.0,0.26544]
[1763380553176,0.51995198,95722.0,95712.0,0.26544]
[1763380557773,0.51995198,95722.0,95712.0,0.22644]
[1763380561570,0.34911757,95721.0,95712.0,0.22644]
[1763380561772,0.02389,95713.0,95712.0,0.22644]
[1763380562348,0.05223732,95717.0,95712.0,0.22644]
[1763380562542,0.02611893,95716.0,95712.0,0.22644]
[1763380562748,0.02611866,95717.0,95712.0,0.22644]
[1763380563421,0.04664294,95717.0,95712.0,0.22644]
[1763380563624,0.02317403,95716.0,95712.0,0.22644]
[1763380564956,0.02611866,95717.0,95712.0,0.16744]
[1763380565283,0.02611893,95716.0,95712.0,0.16744]
[1763380566995,0.02318903,95716.0,95712.0,0.16744]
[1763380568185,0.01811153,95715.0,95712.0,0.16744]
[1763380568377,0.02331341,95714.0,95712.0,0.16744]
[1763380568514,0.04273454,95716.0,95712.0,0.16744]
[1763380568719,0.02610428,95715.0,95712.0,0.16744]
[1763380570188,0.02611866,95717.0,95712.0,0.16744]
[1763380570867,0.34911757,95721.0,95712.0,0.16744]
[1763380572115,0.34911757,95721.0,95712.0,0.13044]
[1763380573980,0.01574962,95720.0,95712.0,0.13044]
[1763380574180,0.05588,95713.0,95712.0,0.13044]
[1763380574355,0.02611811,95719.0,95712.0,0.13044]
[1763380574556,0.02611784,95720.0,95712.0,0.13044]
[1763380574879,0.03141218,95718.0,95712.0,0.13044]
[1763380575110,0.02611866,95717.0,95712.0,0.13044]
[1763380578605,0.06896866,95717.0,95712.0,0.13044]
[1763380578805,0.02611866,95717.0,95712.0,0.13044]
[1763380579348,0.02611866,95717.0,95712.0,0.07644]
[1763380581142,0.05377921,95716.0,95712.0,0.07644]
[1763380583050,0.02236703,95716.0,95712.0,0.07644]
[1763380583292,0.05391747,95720.0,95712.0,0.07644]
[1763380586407,0.05391747,95720.0,95712.0,0.01744]
[1763380589040,0.03141218,95720.0,95712.0,0.01744]
[1763380589630,0.05406046,95720.0,95712.0,0.01744]
[1763380589855,0.05150595,95720.0,95712.0,0.01744]
[1763380590400,0.03141218,95720.0,95712.0,0.01744]
[1763380591183,0.323,95721.0,95712.0,0.01744]
[1763380591405,0.35441218,95721.0,95712.0,0.01744]
[1763380592056,0.03141218,95721.0,95712.0,0.01744]
[1763380592293,0.52013804,95750.0,95712.0,0.01744]
[1763380592510,0.52013804,95740.0,95712.0,0.01744]
[1763380592724,0.34750064,95739.0,95712.0,0.01744]
[1763380593383,0.323,95739.0,95712.0,0.01744]
[1763380593566,0.323,95739.0,95704.0,0.03084448]
[1763380593801,0.02611293,95738.0,95704.0,0.03084448]
[1763380594022,0.323,95739.0,95709.0,0.20896634]
[1763380594244,0.323,95739.0,95710.0,0.01044822]
[1763380594465,0.323,95739.0,95707.0,0.20896963]
[1763380594742,0.323,95739.0,95704.0,0.03084448]
[1763380594959,0.323,95739.0,95705.0,0.20897508]
[1763380595176,0.323,95739.0,95704.0,0.2398211]
[1763380595845,0.323,95739.0,95704.0,0.03084448]
[1763380596281,0.323,95739.0,95704.0,0.23982093]
[1763380596499,0.323,95739.0,95706.0,0.20897259]
[1763380596716,0.323,95739.0,95704.0,0.03084448]
[1763380597116,0.323,95739.0,95704.0,0.23982206]
[1763380597507,0.323,95739.0,95704.0,0.03084448]
[1763380597893,0.323,95739.0,95704.0,0.23982199]
[1763380598251,0.323,95739.0,95704.0,0.03084448]
[1763380598963,0.04980293,95738.0,95704.0,0.03084448]
[1763380599123,0.52013804,95730.0,95704.0,0.03084448]
[1763380600680,0.52013804,95730.0,95692.0,0.20900388]
[1763380600681,0.52013804,95730.0,95692.0,0.04341874]
[1763380600841,0.52013804,95730.0,95695.0,0.03140609]
[1763380601239,0.52013804,95730.0,95700.0,0.2]
[1763380601438,0.01,95706.0,95700.0,0.2]
[1763380602698,0.01,95706.0,95700.0,0.20004425]
[1763380603259,0.01,95706.0,95700.0,0.20104425]
[1763380603694,0.01,95706.0,95700.0,0.20204425]
[1763380603940,0.01,95706.0,95700.0,0.00204425]
[1763380604477,0.01,95706.0,95700.0,0.31551425]
[1763380604885,0.01,95706.0,95700.0,0.31351425]
[1763380605644,0.37889966,95710.0,95700.0,0.31351425]
[1763380605992,0.04717,95723.0,95700.0,0.31351425]
[1763380605993,0.52013804,95720.0,95700.0,0.31351425]
[1763380606189,0.02611811,95719.0,95700.0,0.31451425]
[1763380606594,0.02611811,95719.0,95700.0,0.31351425]
[1763380606911,0.02611811,95719.0,95700.0,0.31451425]
[1763380607112,0.02611811,95719.0,95700.0,0.31351425]
[1763380607635,0.02611811,95719.0,95700.0,0.24851425]
[1763380607849,0.34911811,95719.0,95700.0,0.24851425]
[1763380608379,0.52013804,95710.0,95700.0,0.24851425]
[1763380609134,0.323,95719.0,95700.0,0.24851425]
[1763380609287,0.02611838,95718.0,95700.0,0.24851425]
[1763380610300,0.01744425,95718.0,95700.0,0.24851425]
[1763380610499,0.02455762,95718.0,95700.0,0.24851425]
[1763380611288,0.52013804,95710.0,95700.0,0.24851425]
[1763380611907,0.51962614,95710.0,95700.0,0.24851425]
[1763380614694,0.51962614,95710.0,95700.0,0.17051425]
[1763380620481,0.05113,95701.0,95700.0,0.17051425]
[1763380621012,0.09578,95701.0,95700.0,0.17051425]
[1763380621359,0.45019721,95701.0,95700.0,0.17051425]
[1763380621740,0.45019721,95701.0,95700.0,0.09251425]
[1763380622545,0.35441721,95701.0,95700.0,0.09251425]
[1763380622745,0.323,95701.0,95700.0,0.09251425]
[1763380623575,0.35122,95701.0,95700.0,0.09251425]
[1763380623978,0.323,95701.0,95700.0,0.09251425]
[1763380626596,0.03141609,95703.0,95700.0,0.09251425]
[1763380626795,0.34815251,95709.0,95700.0,0.09251425]
[1763380627047,0.3795686,95709.0,95700.0,0.09251425]
[1763380628955,0.03141609,95709.0,95700.0,0.04551425]
[1763380629160,0.0261192,95715.0,95700.0,0.04551425]
[1763380629368,0.03141362,95715.0,95700.0,0.04551425]
[1763380629598,0.02611538,95729.0,95700.0,0.04551425]
[1763380629912,0.05752706,95729.0,95700.0,0.04551425]
[1763380630120,0.03141168,95729.0,95700.0,0.56565229]
[1763380630735,0.03241168,95729.0,95700.0,0.56565229]
[1763380630988,0.03341168,95729.0,95700.0,0.56565229]
[1763380631358,0.03241168,95729.0,95700.0,0.56565229]
[1763380631976,0.03141168,95729.0,95700.0,0.56565229]
[1763380632808,0.03141168,95729.0,95700.0,0.56555486]
[1763380632972,0.35441168,95729.0,95700.0,0.56555486]
[1763380634795,0.35441168,95729.0,95700.0,0.04551425]
[1763380635077,0.35441168,95729.0,95700.0,0.56555486]
[1763380637376,0.35441168,95729.0,95700.0,0.49155486]
[1763380639190,0.52004061,95720.0,95691.0,0.04341874]
[1763380639374,0.52004061,95720.0,95690.0,0.52004061]
[1763380639376,0.02611811,95719.0,95690.0,0.52004061]
[1763380639573,0.02611811,95719.0,95690.0,0.72004061]
[1763380639782,0.02611811,95719.0,95690.0,1.03350061]
[1763380640410,0.52009604,95720.0,95690.0,1.03350061]
[1763380640630,0.02611811,95719.0,95690.0,1.03350061]
[1763380643618,0.52004061,95720.0,95690.0,1.03350061]
[1763380643819,0.02449246,95719.0,95690.0,1.03350061]
[1763380644129,0.52004061,95710.0,95690.0,1.03350061]
[1763380644336,0.52004061,95710.0,95690.0,0.83350061]
[1763380644535,0.52004061,95710.0,95690.0,0.75550061]
[1763380645166,0.02109,95716.0,95690.0,0.75550061]
[1763380645540,0.02449246,95718.0,95690.0,0.75550061]
[1763380645770,0.02449246,95719.0,95700.0,0.52004061]
[1763380645972,0.02449246,95718.0,95700.0,0.52004061]
[1763380646129,0.02449246,95719.0,95700.0,0.52004061]
[1763380646344,0.02130449,95718.0,95700.0,0.52004061]
[1763380646551,0.02449246,95717.0,95700.0,0.52004061]
[1763380646770,0.02449246,95719.0,95700.0,0.52004061]
[1763380646970,0.02449246,95718.0,95700.0,0.52004061]
[1763380647173,0.02449246,95719.0,95700.0,0.52004061]
[1763380647373,0.02449246,95718.0,95700.0,0.52004061]
[1763380647586,0.02449246,95719.0,95700.0,0.52004061]
[1763380647900,0.02449246,95718.0,95700.0,0.52004061]
[1763380648105,0.02449246,95719.0,95700.0,0.52004061]
[1763380648259,0.02449246,95718.0,95700.0,0.52004061]
[1763380648466,0.02449246,95719.0,95701.0,0.01890514]
[1763380648801,0.02449246,95718.0,95701.0,0.01890514]
[1763380648944,0.02449246,95719.0,95701.0,0.01890514]
[1763380649149,0.02449246,95718.0,95701.0,0.01890514]
[1763380649417,0.05039,95702.0,95690.0,0.23546]
[1763380649607,0.52004061,95700.0,95690.0,0.23546]
[1763380649786,0.02449246,95699.0,95690.0,0.23546]
[1763380651612,0.02449246,95699.0,95690.0,0.16946]
[1763380653082,0.04088,95698.0,95690.0,0.16946]
[1763380653255,0.02449246,95697.0,95690.0,0.16946]
[1763380654926,0.02449246,95699.0,95690.0,0.16946]
[1763380655134,0.02449246,95698.0,95690.0,0.16946]
[1763380655377,0.02449246,95699.0,95690.0,0.16946]
[1763380655583,0.02449246,95698.0,95690.0,0.16946]
[1763380655784,0.06197,95702.0,95690.0,0.16946]
[1763380655785,0.02449246,95699.0,95690.0,0.16946]
[1763380655987,0.01635696,95701.0,95690.0,0.16946]
[1763380657216,0.323,95709.0,95690.0,0.16946]
[1763380657217,0.01391084,95708.0,95690.0,0.16946]
[1763380657414,0.01478384,95707.0,95690.0,0.16946]
[1763380657617,0.01585109,95708.0,95690.0,0.16946]
[1763380658413,0.02449246,95708.0,95690.0,0.16946]
[1763380658791,0.02449246,95708.0,95691.0,0.01629703]
[1763380659369,0.02449246,95707.0,95691.0,0.01629703]
[1763380659578,0.02449246,95714.0,95691.0,0.01629703]
[1763380659887,0.02449246,95713.0,95691.0,0.01629703]
[1763380660295,0.0314156,95717.0,95691.0,0.01629703]
[1763380660296,0.02449246,95716.0,95691.0,0.01629703]
[1763380660491,0.02449246,95715.0,95691.0,0.01629703]
[1763380660994,0.06537246,95715.0,95691.0,0.01629703]
[1763380661237,0.323,95709.0,95691.0,0.01629703]
[1763380661427,0.02449246,95708.0,95691.0,0.01629703]
[1763380665521,0.02186549,95707.0,95691.0,0.01629703]
[1763380665746,0.02278725,95706.0,95690.0,0.62279764]
[1763380665943,0.323,95709.0,95696.0,0.52004061]
[1763380666154,0.323,95709.0,95690.0,0.10275703]
[1763380666155,0.02612111,95708.0,95697.0,0.00361889]
[1763380666331,0.02612111,95708.0,95691.0,0.00721402]
[1763380666540,0.02612111,95708.0,95691.0,0.53142402]
[1763380666936,0.023841,95716.0,95691.0,0.53142402]
[1763380667159,0.023661,95715.0,95691.0,0.53142402]
[1763380667393,0.025971,95714.0,95691.0,0.53142402]
[1763380667590,0.02611893,95716.0,95691.0,0.53142402]
[1763380670577,0.323,95709.0,95691.0,0.52421]
[1763380670802,0.01716187,95708.0,95691.0,0.52421]
[1763380671015,0.01654312,95707.0,95691.0,0.52421]
[1763380672222,0.52004061,95701.0,95691.0,0.52421]
[1763380672445,0.0261233,95700.0,95691.0,0.52421]
[1763380672647,0.0472133,95700.0,95691.0,0.52421]
[1763380672845,0.0472133,95700.0,95691.0,0.44621]
[1763380673884,0.0472133,95700.0,95691.0,0.44721]
[1763380674501,0.0472133,95700.0,95691.0,0.44621]
[1763380675102,0.0261233,95700.0,95691.0,0.44621]
[1763380675343,0.02612357,95699.0,95691.0,0.44621]
[1763380675563,0.02612193,95705.0,95691.0,0.44621]
[1763380675854,0.02612221,95704.0,95691.0,0.44621]
[1763380676356,0.06960221,95704.0,95691.0,0.44621]
[1763380676519,0.06960221,95704.0,95691.0,0.44721]
[1763380676702,0.06960221,95704.0,95691.0,0.44621]
[1763380678258,0.02187,95706.0,95691.0,0.44621]
[1763380678259,0.01668331,95703.0,95691.0,0.44621]
[1763380678440,0.01630081,95702.0,95691.0,0.44621]
[1763380678638,0.01574693,95701.0,95691.0,0.44621]
[1763380678810,0.01717868,95705.0,95691.0,0.44621]
[1763380679209,0.02612193,95705.0,95691.0,0.44621]
[1763380679428,0.02612221,95704.0,95691.0,0.44621]
[1763380679945,0.02612221,95704.0,95691.0,0.36821]
[1763380680123,0.02612111,95708.0,95691.0,0.36821]
[1763380680338,0.02612139,95707.0,95691.0,0.36821]
[1763380682912,0.01528381,95707.0,95691.0,0.36821]
[1763380683180,0.01854366,95708.0,95691.0,0.36821]
[1763380683395,0.02077078,95707.0,95691.0,0.36821]
[1763380684369,0.02612166,95706.0,95692.0,0.00517859]
[1763380684574,0.02612084,95709.0,95692.0,0.00517859]
[1763380684773,0.02612111,95708.0,95692.0,0.00517859]
[1763380685790,0.01475624,95708.0,95692.0,0.00517859]
[1763380685987,0.01475624,95708.0,95691.0,0.36821]
[1763380686211,0.02213249,95708.0,95692.0,0.00877345]
[1763380687071,0.02484224,95707.0,95691.0,0.33898345]
[1763380687559,0.01354124,95708.0,95691.0,0.33898345]
[1763380687713,0.323,95709.0,95691.0,0.33898345]
[1763380687906,0.03141497,95718.0,95691.0,0.33898345]
[1763380688156,0.04575439,95717.0,95691.0,0.33903888]
[1763380688355,0.34263573,95716.0,95691.0,0.33903888]
[1763380688574,0.02323274,95715.0,95691.0,0.33903888]
[1763380688710,0.02459287,95714.0,95691.0,0.33903888]
[1763380689057,0.02459287,95714.0,95691.0,0.33812041]
[1763380689430,0.02611975,95713.0,95691.0,0.33812041]
[1763380689627,0.0261192,95715.0,95691.0,0.33812041]
[1763380689966,0.06535,95717.0,95692.0,0.02090038]
[1763380690183,0.04307956,95716.0,95692.0,0.02090038]
[1763380690331,0.02344346,95716.0,95692.0,0.02090038]
[1763380690732,0.02344346,95716.0,95700.0,0.52004061]
[1763380690931,0.02344346,95716.0,95701.0,0.02089842]
[1763380691952,0.02344346,95715.0,95701.0,0.02089842]
[1763380692884,0.02344346,95715.0,95700.0,1.23037061]
[1763380692885,0.02187,95717.0,95702.0,0.0208982]
[1763380693086,0.04531346,95717.0,95701.0,0.02089842]
[1763380693861,0.02344346,95717.0,95701.0,0.02089842]
[1763380694048,0.02344346,95721.0,95701.0,0.02089842]
[1763380694251,0.01640053,95724.0,95701.0,0.02089842]
[1763380694252,0.02344346,95720.0,95701.0,0.02089842]
[1763380694431,0.02344346,95723.0,95701.0,0.02089842]
[1763380694781,0.02344346,95722.0,95701.0,0.02089842]
[1763380695146,0.02611702,95723.0,95701.0,0.00789842]
[1763380697004,0.02711702,95723.0,95701.0,0.00789842]
[1763380697219,0.05978,95722.0,95701.0,0.00789842]
[1763380697367,0.02611757,95721.0,95701.0,0.00789842]
[1763380698368,0.03991,95720.0,95701.0,0.00789842]
[1763380698666,0.02611811,95719.0,95701.0,0.00789842]
[1763380699068,0.38902811,95719.0,95701.0,0.00789842]
[1763380699473,0.03991,95718.0,95701.0,0.00789842]
[1763380699709,0.02611866,95717.0,95700.0,0.71033]
[1763380699857,0.04598866,95717.0,95700.0,0.71033]
[1763380700059,0.03991,95716.0,95700.0,0.71033]
[1763380700259,0.0261192,95715.0,95700.0,0.71033]
[1763380701277,0.0261192,95715.0,95701.0,0.0026123]
[1763380701628,0.02611948,95714.0,95701.0,0.00620683]
[1763380701779,0.02611893,95716.0,95701.0,0.00620683]
[1763380702126,0.0261192,95715.0,95701.0,0.00620683]
[1763380702329,0.02611893,95716.0,95700.0,0.69953683]
[1763380702491,0.0261192,95715.0,95700.0,0.69953683]
[1763380702690,0.02611893,95716.0,95700.0,0.69953683]
[1763380702895,0.0261192,95715.0,95700.0,0.69953683]
[1763380703111,0.02611893,95716.0,95700.0,0.69953683]
[1763380703316,0.0261192,95715.0,95700.0,0.69953683]
[1763380703493,0.02611893,95716.0,95700.0,0.69953683]
[1763380703697,0.0261192,95715.0,95700.0,0.69953683]
[1763380704036,0.02611893,95715.0,95700.0,0.69953683]
[1763380704239,0.05179293,95715.0,95700.0,0.69953683]
[1763380704533,0.05179293,95715.0,95700.0,1.21961788]
[1763380706042,0.05179293,95715.0,95700.0,0.69953683]
[1763380706383,0.02611893,95715.0,95700.0,1.21961788]
[1763380709402,0.02611893,95715.0,95700.0,1.14161788]
[1763380710524,0.02611893,95715.0,95700.0,0.62153683]
[1763380710855,0.02371949,95714.0,95700.0,0.62153683]
[1763380711053,0.02036398,95713.0,95700.0,0.62153683]
[1763380711477,0.03141155,95714.0,95700.0,0.62153683]
[1763380711674,0.02078849,95713.0,95700.0,0.62153683]
[1763380713216,0.01340887,95713.0,95700.0,0.62153683]
[1763380713622,0.04086,95712.0,95700.0,0.62153683]
[1763380714148,0.04292904,95711.0,95700.0,0.62153683]
[1763380714356,0.34912029,95711.0,95700.0,0.62153683]
[1763380714524,0.02061,95710.0,95700.0,0.62153683]
[1763380714772,0.02612084,95709.0,95700.0,0.62153683]
[1763380715195,0.05753443,95709.0,95700.0,0.62153683]
[1763380716568,0.02612084,95709.0,95700.0,0.54353683]
[1763380716700,0.03141359,95708.0,95700.0,0.54353683]
[1763380716901,0.02612139,95707.0,95700.0,0.54353683]
[1763380720152,0.06698139,95707.0,95700.0,0.54353683]
[1763380722031,0.02612139,95707.0,95700.0,0.54353683]
[1763380723701,0.02612139,95707.0,95700.0,0.46553683]
[1763380724063,0.323,95714.0,95701.0,0.06189]
[1763380724318,0.04794249,95713.0,95707.0,0.02903]
[1763380724838,0.04794249,95713.0,95708.0,0.01903]
[1763380725192,0.03141359,95713.0,95712.0,0.02903]
[1763380725397,0.01329455,95721.0,95712.0,0.02903]
[1763380725595,0.04470814,95721.0,95713.0,0.01903]
[1763380725993,0.01329455,95721.0,95713.0,0.01903]
[1763380726315,0.03141359,95720.0,95713.0,0.01903]
[1763380726662,0.01130518,95719.0,95713.0,0.01903]
[1763380726952,0.03141359,95720.0,95713.0,0.01903]
[1763380726953,0.0165289,95718.0,95714.0,0.04286]
[1763380727149,0.03141359,95720.0,95714.0,0.04286]
[1763380727150,0.0165289,95719.0,95714.0,0.04286]
[1763380727348,0.0165289,95718.0,95717.0,0.02903]
[1763380727585,0.03141359,95720.0,95717.0,0.02903]
[1763380727760,0.03141359,95720.0,95719.0,0.02903]
[1763380728339,0.03141359,95720.0,95719.0,0.07189]
[1763380728546,0.0165289,95728.0,95719.0,0.07189]
[1763380728760,0.0165289,95730.0,95720.0,0.04286]
[1763380728968,0.34361,95736.0,95727.0,0.04806]
[1763380728969,0.0165289,95729.0,95727.0,0.04806]
[1763380729179,0.0165289,95735.0,95727.0,0.04806]
[1763380729360,0.03615524,95734.0,95727.0,0.04806]
[1763380729534,0.03140849,95729.0,95727.0,0.04806]
[1763380730683,0.03140849,95729.0,95727.0,0.03906]
[1763380730876,0.04793739,95729.0,95727.0,0.03906]
[1763380731453,0.03140849,95729.0,95728.0,0.02903]
[1763380731641,0.01645,95740.0,95728.0,0.07189]
[1763380731842,0.02903,95734.0,95728.0,0.07189]
[1763380732096,0.02903,95734.0,95728.0,0.02903]
[1763380732322,0.0165289,95733.0,95728.0,0.02903]
[1763380732526,0.02903,95734.0,95728.0,0.02903]
[1763380733307,0.02903,95734.0,95733.0,0.03801]
[1763380733662,0.02903,95734.0,95733.0,0.08087]
[1763380734493,0.0165289,95744.0,95733.0,0.08087]
[1763380734695,0.0165289,95747.0,95734.0,0.04257]
[1763380734898,0.02903,95743.0,95734.0,0.04257]
[1763380735415,0.02903,95743.0,95742.0,0.04621]
[1763380735799,0.02903,95743.0,95742.0,0.08878]
[1763380736624,0.02903,95746.0,95742.0,0.08878]
[1763380736858,0.02903,95746.0,95743.0,0.04257]
[1763380737072,0.00112477,95747.0,95745.0,0.02718]
[1763380737283,0.00012477,95747.0,95746.0,0.02718]
[1763380737742,0.00012477,95747.0,95746.0,0.06975]
[1763380737946,0.00012477,95747.0,95746.0,0.06175]
[1763380740632,0.00012477,95747.0,95746.0,0.01918]
[1763380741091,0.00012477,95747.0,95746.0,0.06175]
[1763380742844,0.02732623,95753.0,95746.0,0.06175]
[1763380743096,0.02732623,95753.0,95747.0,0.01103]
[1763380744926,0.02732623,95753.0,95747.0,0.00303]
[1763380747433,0.0165289,95752.0,95747.0,0.00303]
[1763380750627,0.0165289,95752.0,95748.0,0.04257]
[1763380750886,0.0165289,95752.0,95747.0,0.00303]
[1763380751505,0.02711559,95753.0,95748.0,0.04257]
[1763380753931,0.02711559,95753.0,95747.0,0.00303]
[1763380754334,0.0165289,95752.0,95747.0,0.00303]
[1763380755076,0.02711559,95752.0,95747.0,0.00303]
[1763380755306,0.0165289,95751.0,95747.0,0.00303]
[1763380759047,0.0165289,95751.0,95742.0,0.06009]
[1763380759212,0.02711559,95752.0,95742.0,0.06009]
[1763380759413,0.02711559,95752.0,95743.0,0.02088925]
[1763380760498,0.0234989,95751.0,95743.0,0.02088925]
[1763380761101,0.0234989,95751.0,95742.0,0.01903]
[1763380762705,0.03886,95750.0,95742.0,0.01903]
[1763380762881,0.017242,95749.0,95742.0,0.01903]
[1763380763083,0.017242,95748.0,95742.0,0.01903]
[1763380763496,0.01985,95743.0,95739.0,0.01903]
[1763380766170,0.01985,95743.0,95739.0,3e-05]
[1763380766410,0.01985,95743.0,95730.0,0.55421806]